Cogmind - Beta 14 @@@ ROGUE MODE // 2025.03.11 @ 01:01:36 Player: Rudrot Result: Destroyed by ED-JHD(R) with Subdweller Machine Gun Performance ------------- Evolutions (0) 0 Regions Visited (2) 400 Robots Destroyed (23) 115 Value Destroyed (556) 556 Prototype IDs (15) 300 Alien Tech Used (0) 0 Bonus (0) 0 TOTAL SCORE: 1371 Bonus ------- None Cogmind --------- Core Integrity 0/250 Matter 0/300 Energy 99/100 System Corruption 4% Temperature Cool (0) Movement Core (50) Location -10/Subcaves Parts ------- > --- POWER (1) -------- (None) > --- PROPULSION (2) --- (None) > --- UTILITY (2) ------ (None) > --- WEAPON (2) ------- (None) > --- INVENTORY (5) ---- Large Storage Unit Large Matter Pod (14) Targeting Computer Core Shielding Grenade Launcher Peak State ------------ > --- POWER ------------ Light Ion Engine > --- PROPULSION ------- Light Treads Light Treads > --- UTILITY ---------- Small Storage Unit Large Storage Unit > --- WEAPON ----------- Assault Rifle Light Assault Rifle > --- INVENTORY -------- Grenade Launcher [Rating: 7] Favorites ----------- Power Light Ion Engine Engine Light Ion Engine Propulsion Light Treads Treads Light Treads Utility Large Storage Unit Storage Large Storage Unit Protection Core Shielding Weapon Light Assault Rifle Ballistic Gun Light Assault Rifle Launcher Grenade Launcher Build | -11 -10 -10 ------- Run | Yrd Mat Sub Slots Evolved . | . . . Power . | . . . Propulsion . | . . . Utility . | . . . Weapon . | . . . Parts Attached 19 | 6 7 6 Power 2 | 1 1 . Engine 2 | 1 1 . Core . | . . . Reactor . | . . . Propulsion 2 | 2 . . Treads 2 | 2 . . Leg . | . . . Wheel . | . . . Hover . | . . . Flight . | . . . Utility 3 | 1 2 . Device . | . . . Storage 2 | 1 1 . Processor . | . . . Hackware . | . . . Protection 1 | . 1 . Artifact . | . . . Weapon 12 | 2 4 6 Energy Gun . | . . . Energy Cannon . | . . . Ballistic Gun 7 | 2 3 2 Ballistic Cannon . | . . . Launcher 5 | . 1 4 Special Weapon . | . . . Impact Weapon . | . . . Slashing Weapon . | . . . Piercing Weapon . | . . . Special Melee Weapon . | . . . Unidentified Prototypes . | . . . Parts Lost 2 | . 1 1 Power 2 | . 1 1 Propulsion . | . . . Utility . | . . . Weapon . | . . . Highest Loss Streak 1 | . 1 1 To Critical Strikes . | . . . Average Slot Usage (%) 93 | . 96 91 Engine 10 | . 13 8 Treads 27 | . 28 27 Storage 13 | . 14 13 Protection 12 | . 10 13 Ballistic Gun 25 | . 27 23 Launcher 2 | . . 3 Peak Build Rating 7 | 6 7 7 Average Rating 6 | 4 6 6 On Entrance 4 | . 6 7 Naked Turns 77 | . . 77 Heaviest Build 29 | 11 28 29 Greatest Support 40 | 40 40 40 Greatest Overweight (x) 3 | 3 . . Average Overweight (x) . | . . . Largest Inventory Capacity 15 | 8 15 15 Average Capacity 14 | 7 14 14 Most Carried 7 | . 6 7 Average Carried 5 | . 3 6 Final Capacity 15 | 8 15 5 Final Carried 6 | . 6 5 Class Distribution -------------------- 100% | Mutant Dominant Class ---------------- Mutant | -10/Materials Mutant | -10/Subcaves Resources | -11 -10 -10 ----------- Run | Yrd Mat Sub Matter Collected 778 | 147 327 304 Remotely . | . . . Salvage Created 609 | . 337 272 Parts 52 | . 27 25 Haulers Intercepted 1 | . 1 . Recyclers Shooed . | . . . Parts Field Recycled . | . . . Retrieved Matter . | . . . Parts Self-Destructed 14 | . . 14 Prevented . | . . . Kills | -11 -10 -10 ------- Run | Yrd Mat Sub Combat Hostiles Destroyed 21 | . 11 10 Guns 16 | . 11 5 AOE 5 | . . 5 Classes Destroyed 5 | . 4 1 Worker 1 | . 1 . Hauler 1 | . 1 . Swarmer 9 | . 6 3 Grunt 5 | . 5 . Subdweller 7 | . . 7 Best Kill Streak 6 | . 6 3 Combat Bots Only 5 | . 5 3 Max Kills in Single Turn 2 | . 2 2 Gunslinging . | . . . Exploded 2 | . . 2 Melee . | . . . Uniques/NPCs Destroyed . | . . . Combat | -11 -10 -10 -------- Run | Yrd Mat Sub Hostile Shots Fired 94 | . 64 30 Missed 34 | . 21 13 Damage Taken 830 | . 436 394 Core 262 | . 108 154 Absorbed by Shields . | . . . Redirected to Shielding 13 | . 3 10 Core Remaining (%) 100 | 100 . . Volleys Fired 89 | . 49 40 Largest 2 | . 2 2 Hottest 50 | . 50 50 Shots Fired 160 | . 95 65 Gun 128 | . 90 38 Cannon . | . . . Launcher 32 | . 5 27 Special . | . . . Kinetic 128 | . 90 38 Thermal . | . . . Explosive 32 | . 5 27 Electromagnetic . | . . . Robot Hit Streak 7 | . 7 4 Robot Miss Streak 3 | . 3 2 Penetration Max . | . . . Secondary Targets 4 | . 4 . Max Gunslinging Chain 1 | . 1 . Shots Hit Robots 64 | . 48 16 Core Hits 40 | . 21 19 Critical Kills . | . . . Critical Parts Destroyed . | . . . Critical Strikes . | . . . Melee Attacks . | . . . Impact . | . . . Slashing . | . . . Piercing . | . . . Sneak Attacks . | . . . Combat Hostiles . | . . . Follow-up Attacks . | . . . Damage Inflicted 1110 | . 544 566 Guns 697 | . 544 153 Cannons . | . . . Explosions 413 | . . 413 Melee . | . . . Ramming . | . . . Kinetic 697 | . 544 153 Thermal . | . . . Explosive 413 | . . 413 Electromagnetic . | . . . Impact . | . . . Slashing . | . . . Piercing . | . . . Highest Corruption 4 | . 4 4 Average Corruption 3 | . 2 4 Corruption Purged . | . . . Corruption Blocked . | . . . Effects 85 | . 15 70 Message Errors 18 | . 2 16 Matter Fused 18 | . 3 15 Heat Flow Errors 10 | . 4 6 Energy Discharges 14 | . . 14 Parts Fused 1 | . . 1 Data Loss (minor) 7 | . . 7 Data Loss (major) 7 | . 2 5 Misfires 4 | . 2 2 Alerts 5 | . 1 4 Weapon Failures 1 | . 1 . Overload Shots . | . . . Overflow Damage . | . . . Projectiles . | . . . Explosions . | . . . Melee . | . . . Knockbacks . | . . . Impact . | . . . Kinetic . | . . . Secondary . | . . . Self-Inflicted Damage 67 | . . 67 Shots 5 | . . 5 Rammed . | . . . Targets Rammed . | . . . Kicked . | . . . Crushed . | . . . Highest Temperature 241 | . 237 241 Average Temperature 75 | . 56 107 Received Heat Transfer 201 | . 144 57 Siege Activations . | . . . Robots Corrupted . | . . . Combat Hostiles . | . . . Parts Fried . | . . . Impact Corruptions . | . . . Robots Melted . | . . . Combat Hostiles . | . . . Parts Melted . | . . . Heat Transferred . | . . . Parts Sabotaged . | . . . Parts Stolen . | . . . Parts Stripped . | . . . Power Chain Reactions . | . . . Alert | -11 -10 -10 ------- Run | Yrd Mat Sub Peak Influence 210 | . 210 . Initial . | . . . Average 40 | . 41 . Maximum Alert Level 1 | . 1 . Low Security (%) 96 | 100 96 . Level 1 3 | . 3 . Level 2 . | . . . Level 3 . | . . . Level 4 . | . . . Level 5 . | . . . High Security . | . . . Max Security . | . . . Squads Dispatched 1 | . 1 . Investigation . | . . . Extermination . | . . . Reinforcement 1 | . 1 . Assault . | . . . Garrison . | . . . Intercept . | . . . Searches Triggered . | . . . Construction Impeded . | . . . Haulers Reinforced . | . . . Active Scanning Responses . | . . . Cargo Convoy Interrupts . | . . . Stealth | -11 -10 -10 --------- Run | Yrd Mat Sub Distress Signals . | . . . Communications Jammed . | . . . Distress Signals . | . . . Times Spotted 32 | . 22 10 Peak Tracking Total 3 | . 3 3 Tactical Retreats . | . . . Traps | -11 -10 -10 ------- Run | Yrd Mat Sub Traps Triggered 2 | . 2 . Indirectly . | . . . Trap Hack Attempts . | . . . Triggered . | . . . Disarmed . | . . . Reprogrammed 1 | . 1 . Reused . | . . . Traps Extracted . | . . . Installed . | . . . Triggered . | . . . Machines | -11 -10 -10 ---------- Run | Yrd Mat Sub Machines Disabled 1 | . . 1 Max in Single Turn 1 | . . 1 Machines Repaired . | . . . Machines Dismantled . | . . . Machines Sabotaged . | . . . Overloaded Fab Kills . | . . . Hacking | -11 -10 -10 --------- Run | Yrd Mat Sub Machines Accessed 9 | . 8 1 Terminals 7 | . 7 . Fabricators . | . . . Repair Stations 1 | . 1 . Recycling Units . | . . . Scanalyzers . | . . . Garrison Access . | . . . Total Hacks 24 | . 15 9 Successful 16 | . 7 9 Failed 8 | . 8 . Catastrophic 2 | . 2 . Database Lockouts . | . . . Manual . | . . . Terminals 14 | . 14 . Fabricators . | . . . Repair Stations 1 | . 1 . Recycling Units . | . . . Scanalyzers . | . . . Garrison Access . | . . . Terminal Hacks 16 | . 7 9 Record 8 | . . 8 Robot Analysis 1 | . 1 . Prototype ID Bank 3 | . 3 . Locate Traps 1 | . 1 . Reprogram Traps 1 | . 1 . Hauler Manifests 1 | . 1 . Derelict Proto ID Bank 1 | . . 1 Fabricator Hacks . | . . . Repair Station Hacks . | . . . Recycling Unit Hacks . | . . . Scanalyzer . | . . . Garrison Access Hacks . | . . . Unauthorized Hacks . | . . . Terminals . | . . . Fabricators . | . . . Repair Stations . | . . . Recycling Units . | . . . Scanalyzers . | . . . Garrison Access . | . . . Data Cores Recovered . | . . . Used . | . . . Hacking Detections 7 | . 7 . Full Trace Events . | . . . Feedback Events . | . . . Feedback Blocked . | . . . Robot Schematics Acquired . | . . . Robots Built . | . . . Authchips . | . . . Time . | . . . Total Robot Build Rating . | . . . Part Schematics Acquired . | . . . Parts Built . | . . . Authchips . | . . . Time . | . . . Total Part Build Rating . | . . . Parts Repaired . | . . . Time . | . . . Parts Recycled . | . . . Recycled Matter . | . . . Retrieved Matter . | . . . Retrieved Components . | . . . Parts Scanalyzed . | . . . Part Schematics Acquired . | . . . Parts Damaged . | . . . Bothacking | -11 -10 -10 ------------ Run | Yrd Mat Sub Used RIF Installer . | . . . Robots Hacked . | . . . Non-combat . | . . . Combat . | . . . Robot Hacks Applied . | . . . Relay Couplers Released . | . . . Fabnet Peak Effective % . | . . . Robots Rewired . | . . . Allies Hacked . | . . . Hacks Repelled . | . . . Allies | -11 -10 -10 -------- Run | Yrd Mat Sub Total Allies . | . . . Largest Group . | . . . Highest-Rated Group . | . . . Highest-Rated Ally . | . . . Total Orders . | . . . Ally Attacks . | . . . Total Damage . | . . . Kills . | . . . Allies Corrupted . | . . . Allies Melted . | . . . Intel | -11 -10 -10 ------- Run | Yrd Mat Sub Robot Analysis Total 1 | . 1 . Derelict Logs Recovered . | . . . Drone Launches . | . . . Drone Recoveries . | . . . Exploration | -11 -10 -10 ------------- Run | Yrd Mat Sub Turns Passed 5254 | 61 2040 3153 Spaces Moved 3109 | 45 1063 2001 Core 180 | 29 . 151 Treads 2929 | 16 1063 1850 Legs . | . . . Wheels . | . . . Hover . | . . . Flight . | . . . Fastest Speed 50 | 50 160 50 Average Speed 154 | 118 160 151 Slowest Speed 200 | 200 160 160 Overloaded Moves . | . . . Propulsion Burnouts . | . . . Robots Hopped . | . . . Cave-ins Triggered . | . . . Exploration Rate (%) 57 | 4 100 69 Regions Visited 2 Branch Regions 1 Pre-discovered Areas 1 | . . 1 Known Exits Taken . | . . . Unknown Exits Taken 2 | 1 1 . Scrap Searched . | . . . Spaces Dug 11 | . . 11 Terrain Destroyed 160 | . 31 129 Melee . | . . . Projectile . | . . . AOE 160 | . 31 129 Terrain Rammed . | . . . Walls Destroyed . | . . . Machines Disabled . | . . . Actions | -11 -10 -10 --------- Run | Yrd Mat Sub Total 3423 | 50 1316 2057 Wait 197 | . 188 9 Move 3107 | 44 1062 2001 Hop . | . . . Pick Up 7 | . 6 1 Fast Attach 9 | 6 3 . Attach . | . . . Detach 1 | . 1 . Swap 10 | . 4 6 Drop 3 | . 3 . Fire 89 | . 49 40 Melee . | . . . Ram . | . . . Kick . | . . . Crush . | . . . Escape Stasis . | . . . Rewire . | . . . Trap . | . . . Miscellaneous . | . . . Route ------- -11/Scrapyard -10/Materials (discovered 5 exits: [*Mat x3] / [*Min] / *Sub) -10/Subcaves (discovered 2 exits: [*Mat x2]) History --------- Turn | Location | Event 27 | -11/Scrapyard | Discovered new exit (range 16) 62 | -11/Scrapyard | Entered Materials 310 | -10/Materials | Build established: Mutant 907 | -10/Materials | Discovered new exit (range 4) 1073 | -10/Materials | Discovered new exit (range 12) 1219 | -10/Materials | Discovered new exit (range 8) 1349 | -10/Materials | Discovered new exit (range 15) 2090 | -10/Materials | Discovered new exit (range 8) 2102 | -10/Materials | Entered Subcaves 2192 | -10/Subcaves | Discovered new exit (range 5) 2639 | -10/Subcaves | A swath of the cavern ceiling suddenly collapsed 2669 | -10/Subcaves | Core integrity fell below 50% 2767 | -10/Subcaves | Shifting Twisted Machinery released Battle Cannon 2871 | -10/Subcaves | Shifting Twisted Machinery released Sub. Laser 2980 | -10/Subcaves | A swath of the cavern ceiling suddenly collapsed 3484 | -10/Subcaves | Discovered new exit (range 7) 3925 | -10/Subcaves | Visited 4L-MR0's lab 4652 | -10/Subcaves | Ambushed by Subdweller buried in earth 4656 | -10/Subcaves | Ambushed by Subdweller buried in earth 5147 | -10/Subcaves | Learned location of Zion (-7) 5147 | -10/Subcaves | Met a Zionite searching for "candidates" 5154 | -10/Subcaves | Ambushed by Subdwellers from Twisted Machinery 5178 | -10/Subcaves | Released all parts (6) 5231 | -10/Subcaves | Core integrity fell below 20% 5255 | -10/Subcaves | Destroyed by ED-JHD(R) with Subdweller Machine Gun Last Messages --------------- Lgt. Assault Rifle. 05067_ System corrupted: Energy discharge (-40). 05146_ GU-823(z): "She is not going to be happy we haven't found any suitable candidates yet." 05147_ GU-823(z): "Hey you! It's really dangerous down here, I feel that you could die at any moment. For your health and safety might I suggest a trip to Zion?" World map updated: -7/Zion. 05156_ GU-823(z) pulls a Mak. Axe out of the Twisted Machinery. 05157_ GU-823(z) destroyed. 05160_ WY-TP3(z) destroyed. 05165_ Subatomizers dissect the Mak. Axe. 05178_ Released Lgt. Assault Rifle. 05178_ Released Lrg. Storage Unit. 05178_ Released Lgt. Treads. 05178_ Released Core Shielding. 05178_ Released Grenade Launcher. 05203_ System corrupted: Energy discharge (-35). Map ----- +----------------------------------------------------+ | ?????# #?????????????????????? | | ?????## ## ##?????????????????????? | | # ????## #### #??????????????????????? | | " "??#" ##?## #??????????????????????? | | " ??##""##??# ##?????????????????????? | | #""#??#""""???# ##????????????????????? | | """##?##""##??### ##???????????????????? | | # ""?##""" ###?## #####???????????????? | | ###"#"" # ### #???????????????? | | "" # ##???????????????? | | ##### ### #????????????????? | | ###??# ##?# #????????????????? | | ##??## #?## ## #????????????????? | | #?## ##?# ##### #????????????????? | | ### ##?## ###???# #????????????????? | | #### #?## #####?# #????????????????? | | ### ###?# #?# #????????????????? | | ### ##???#### ### ##???????????????? | | ###?# ##???????### &## ##??????????????? | | ?##?## ##?????????## ## #??????????????? | | #### ##?????????# ##R #??????????????? | | ########??## #??????????????? | | ## #???## #??????????????? | | ##### #????# ###??????????????? | | ## ??### #????# #????????????????? | | ###?##?## #????#@ #????????????????? | | ???????# #????# ##????????????????? | | ???###?## ##?#### ##?????????????????? | | ??# ##?#### ##### #####???????????????? | | ## #???## #?# # #???????????????? | | #??## #?# ##??????????????? | | #?####?# #?#### ##?????????????? | | ### #?# ##????## # < "#?????????????? | | ## ### ## ##??########## "#?????????????? | | ##### ##??## #???## ##?????????????? | | ## ##### ##?######??????????????? | | ## ## ### #????????????????? | | #### ## #????????????????? | | #??##### ### #????????????????? | | #????### ## #?## ##????????????????? | | ?????# ######## #??# #?????????????????? | | ????# ##??# #?######## ##?????????????????? | | ????## ###???# #### # ## #?????????????????? | | ?????###??????# ##?????????????????? | | ???????????????# #??????????????????? | | ???????????????## ### #??????????????????? | | ??????????????### ## #########???????????????? | | ######???????## ### #???# #???????????????? | | # ##??????# #?## ##??# ##??????????????? | | # ####??## #?## ##?# ##?????????????? | +----------------------------------------------------+ Best States ------------- Heat Dissipation 25 Energy Generation 10 Energy Capacity 125 Matter Stores 300 Matter Capacity 300 Sight Range 16 Terrain Scan Density 10 Core Shielding 20 Evasion (%) 50 Recoil Reduction 2 Item Schematics ----------------- None Robot Schematics ------------------ None Fabricated ------------ Nothing Alien Tech Used ----------------- None Achievements -------------- Maybe Next Time I'll Detach My Launcher Challenges ------------ None Game ------ Seed ProjectionSapperMallet Manual? 0 Play Time 00:31:30 Cumulative 22.3 hours Start 2025.03.11 @ 00:26:23 End 2025.03.11 @ 01:01:36 Sessions 1 Manual Loads 0 Difficulty Rogue Special Mode None Game No. 14 Rogue 14 Adventurer 0 Explorer 0 Win Type - Total 0 Types 0/0/0/0/0/0/0/0/0 Lore% 7 Gallery% 13 Achievement% 16 Wizard Run 0 Options --------- Layout 1 ASCII 0 Keyboard 1 Movement Numpad Keybinds 0 Fullscreen 2 Font 24/Cog Map View 50x35 Zoom Use 0% Tactical HUD 1 Map Filters NONE Filters NONE Steam 1 RUN: eee6bccd-c180-4297-90c1-2045f8ba5e18